{"text_format":"1","workbook":"xlsx","n_sheets":4,"sheets":["会員カード","入力見本","入会金・会費","確認。登録"],"not_rendered":{"charts":0,"images":4,"macros":0,"external_links":0,"defined_names":1,"comments":0,"pivot_tables":0},"unopened":[],"bounds":{"document_bytes":16777216,"sheet_cells":100000,"rows_first":2000,"rows_last":500,"rows_between":2000,"halvings":0,"cell_chars":16384,"cell_head_chars":4096},"cells_cut":0,"cells_raw":0,"read":"whole","date_system":"1900"}

{"sheet":"会員カード","index":0,"n_rows":52,"n_cols":32,"rows_kept":52,"cut":false,"hidden":false,"merged":[[16,2,16,7],[16,8,16,27],[46,2,46,27],[29,8,30,17],[29,18,29,19],[29,20,29,27],[28,8,28,27],[42,8,42,27],[17,2,19,7],[17,9,17,27],[18,8,19,27],[20,2,21,7],[20,8,20,9],[20,10,20,17],[20,18,20,19],[20,20,20,27],[9,2,10,7],[9,10,10,17],[9,20,10,27],[11,20,11,23],[11,2,11,7],[11,8,11,9],[11,10,11,13],[11,15,11,18],[8,18,10,19],[1,8,2,25],[12,2,15,7],[12,8,13,24],[12,25,13,27],[14,8,15,9],[14,10,15,19],[14,20,15,21],[14,22,15,27],[11,26,11,27],[3,25,3,26],[3,22,3,23],[3,18,3,20],[8,2,8,7],[8,8,10,9],[8,10,8,17],[8,20,8,27],[21,8,21,9],[21,10,21,17],[21,18,21,19],[21,20,21,27],[22,2,24,7],[22,8,24,27],[31,18,31,19],[31,20,31,21],[31,22,31,26],[29,2,30,7],[25,2,26,7],[25,9,25,24],[25,25,25,27],[26,8,27,24],[26,25,27,27],[27,2,27,7],[28,2,28,7],[44,2,45,7],[44,8,45,27],[51,3,51,12],[34,2,37,7],[34,8,37,27],[38,2,41,7],[38,8,41,27],[42,2,43,7],[43,8,43,27],[32,2,33,7],[32,8,33,27],[30,18,30,19],[30,20,30,27],[31,2,31,7],[31,8,31,17]]}
[]
[null,null,null,null,null,null,null,null,"東海大学不動産建設望星会会員カード"]
[]
[null,null,null,null,null,null,null,null,null,null,null,null,null,null,null,null,null,null,2023,null,null,"年",null,null,"月",null,null,"日"]
[null,null,null,null,null,null,null,null,"顔写真の添付が難しい場合は、写真をそのままお送りください。"]
[null,null,null,null,null,null,null,null,"（サイズについては事務局で調整いたします。）"]
[]
[null,null,null,null,null,null,null,null,null,null,null,null,null,null,null,null,null,null,null,"※",null,null,null,"の欄は必須項目です"]
[null,null,"ふりがな",null,null,null,null,null,"（姓）",null,null,null,null,null,null,null,null,null,"（名）"]
[null,null,"氏名"]
[]
[null,null,"生年月日",null,null,null,null,null,"西暦",null,null,null,null,null,"年",null,null,null,null,"月",null,null,null,null,"日","生",{"$f":"入会金・会費!M10","v":{"$error":"#NUM!"}}]
[null,null,"勤務先",null,null,null,null,null,null,null,null,null,null,null,null,null,null,null,null,null,null,null,null,null,null,null,null,null,null,null,false]
[null,null,null,null,null,null,null,null,null,null,null,null,null,null,null,null,null,null,null,null,null,null,null,null,null,null,null,null,null,null,false]
[null,null,null,null,null,null,null,null,"所属部署",null,null,null,null,null,null,null,null,null,null,null,"役職"]
[]
[null,null,"免許番号",null,null,null,null,null,"　　　　　　　(                    ）　　　　　　　　　号"]
[null,null,"勤務先住所",null,null,null,null,null,"〒"]
[]
[]
[null,null,"連絡先",null,null,null,null,null,"TEL",null,null,null,null,null,null,null,null,null,"携帯",null,null,null,null,null,null,null,null,null,null,null,{"$f":"LEN(K21)-LEN(SUBSTITUTE(K21,\"-\",\"\"))","v":0},{"$f":"LEN(U21)-LEN(SUBSTITUTE(U21,\"-\",\"\"))","v":0}]
[null,null,null,null,null,null,null,null,"FAX",null,null,null,null,null,null,null,null,null,"email",null,null,null,null,null,null,null,null,null,null,null,{"$f":"LEN(K22)-LEN(SUBSTITUTE(K22,\"-\",\"\"))","v":0}]
[null,null,"主な業務内容"]
[]
[]
[null,null,"自宅住所　",null,null,null,null,null,"〒",null,null,null,null,null,null,null,null,null,null,null,null,null,null,null,null,"開示の希望"]
[null,null,null,null,null,null,null,null,null,null,null,null,null,null,null,null,null,null,null,null,null,null,null,null,null,null,null,null,null,null,false]
[null,null,"（開示の希望を選択してください）",null,null,null,null,null,null,null,null,null,null,null,null,null,null,null,null,null,null,null,null,null,null,null,null,null,null,null,false]
[null,null,"出身高校"]
[null,null,"出身大学（校舎）",null,null,null,null,null,null,null,null,null,null,null,null,null,null,null,"学部"]
[null,null,null,null,null,null,null,null,null,null,null,null,null,null,null,null,null,null,"学科"]
[null,null,"出身地",null,null,null,null,null,null,null,null,null,null,null,null,null,null,null,"卒業年度",null,"西暦",null,null,null,null,null,null,"年"]
[null,null,"紹介者"]
[]
[null,null,"この会で情報発信できる事  （出来るだけ詳しくお願いします）"]
[]
[]
[]
[null,null,"この会で情報を得たい事（出来るだけ詳しくお願いします）"]
[]
[]
[]
[null,null,"参加希望地域会",null,null,null,null,null,"むさしの・東関東・城南・CMC・渋谷・城北ブランチ・新都心　 "]
[null,null,null,null,null,null,null,null,"かながわ・さんたま・さいたま・六本木・上野・立川・田園都市"]
[null,null,"その他（趣味、自分のこと）"]
[]
[null,null,"・私は現在、また将来にわたって反社会勢力に該当しないことを表明・確約いたします。　　"]
[]
[null,null,"上記の個人情報は当会の目的以外に使用せず、会員管理部会において厳重に保管します。"]
[]
[null,null,"【送付先】(事務局）"]
[null,null,null,"n.iizuka@promenade-smile.co.jp"]

{"sheet":"入力見本","index":1,"n_rows":48,"n_cols":32,"rows_kept":48,"cut":false,"hidden":false,"merged":[[47,3,47,12],[3,18,3,20],[3,22,3,23],[3,25,3,26],[11,25,11,27],[11,2,11,7],[11,8,11,9],[11,10,11,13],[11,15,11,18],[11,20,11,23],[12,2,15,7],[12,8,13,24],[12,25,13,27],[14,8,15,9],[14,10,15,19],[14,20,15,21],[1,8,2,21],[8,2,8,7],[8,8,10,9],[8,10,8,17],[8,18,10,19],[8,20,8,27],[9,2,10,7],[9,10,10,17],[9,20,10,27],[14,22,15,27],[16,2,18,7],[16,9,16,27],[17,8,18,27],[19,2,20,7],[19,8,19,9],[19,10,19,17],[19,18,19,19],[19,20,19,27],[20,8,20,9],[20,10,20,17],[20,18,20,19],[20,20,20,27],[21,2,23,7],[21,8,23,27],[24,2,25,7],[24,9,24,24],[24,25,24,27],[25,8,26,24],[25,25,26,27],[26,2,26,7],[30,2,31,7],[30,8,31,27],[27,2,28,7],[27,8,28,17],[27,18,27,19],[27,20,27,27],[28,18,28,19],[28,20,28,27],[29,2,29,7],[29,8,29,17],[29,18,29,19],[29,20,29,21],[29,22,29,26],[42,2,43,7],[42,8,43,27],[32,2,35,7],[32,8,35,27],[36,2,39,7],[36,8,39,27],[40,2,41,7],[40,8,41,27]]}
[]
[null,null,null,null,null,null,null,null,"東海大学不動産建設望星会会員カード"]
[]
[null,null,null,null,null,null,null,null,null,null,null,null,null,null,null,null,null,null,2021,null,null,"年",6,null,"月",22,null,"日"]
[null,null,null,null,null,null,null,null,"顔写真の添付が難しい場合は、写真をそのままお送りください。"]
[null,null,null,null,null,null,null,null,"（サイズについては事務局で調整いたします。）"]
[]
[null,null,null,null,null,null,null,null,null,null,null,null,null,null,null,null,null,null,null,"※",null,null,null,"の欄は必須項目です"]
[null,null,"ふりがな",null,null,null,null,null,"（姓）",null,"いとう",null,null,null,null,null,null,null,"（名）",null,"よしき"]
[null,null,"氏名",null,null,null,null,null,null,null,"伊藤",null,null,null,null,null,null,null,null,null,"良貴"]
[]
[null,null,"生年月日",null,null,null,null,null,"西暦",null,1978,null,null,null,"年",8,null,null,null,"月",9,null,null,null,"日","生まれ"]
[null,null,"勤務先",null,null,null,null,null,"メットライフ生命保険株式会社",null,null,null,null,null,null,null,null,null,null,null,null,null,null,null,null,null,null,null,null,null,true]
[null,null,null,null,null,null,null,null,null,null,null,null,null,null,null,null,null,null,null,null,null,null,null,null,null,null,null,null,null,null,false]
[null,null,null,null,null,null,null,null,"所属部署",null,"晴海通エイジェンシーオフィス",null,null,null,null,null,null,null,null,null,"役職",null,"プレイングマネージャー"]
[]
[null,null,"勤務先住所",null,null,null,null,null,"〒","100-0004"]
[null,null,null,null,null,null,null,null,"千代田区大手町1-1-3-20F"]
[]
[null,null,"連絡先",null,null,null,null,null,"TEL",null,"03-6870-6750",null,null,null,null,null,null,null,"携帯",null,"090-2763-7754",null,null,null,null,null,null,null,null,null,{"$f":"LEN(K20)-LEN(SUBSTITUTE(K20,\"-\",\"\"))","v":2},{"$f":"LEN(U20)-LEN(SUBSTITUTE(U20,\"-\",\"\"))","v":2}]
[null,null,null,null,null,null,null,null,"FAX",null,"03-6674-7457",null,null,null,null,null,null,null,"email",null,"yorki_ito@yahoo.co.jp",null,null,null,null,null,null,null,null,null,{"$f":"LEN(K21)-LEN(SUBSTITUTE(K21,\"-\",\"\"))","v":2}]
[null,null,"主な業務内容",null,null,null,null,null,"チーム管理、採用、生命保険、損害保険を活用したリスクコンサルティング"]
[]
[]
[null,null,"自宅住所　",null,null,null,null,null,"〒","174-0044",null,null,null,null,null,null,null,null,null,null,null,null,null,null,null,"開示の希望"]
[null,null,null,null,null,null,null,null,"板橋区相生町13-3-316",null,null,null,null,null,null,null,null,null,null,null,null,null,null,null,null,null,null,null,null,null,false]
[null,null,"（開示の希望を選択してください）",null,null,null,null,null,null,null,null,null,null,null,null,null,null,null,null,null,null,null,null,null,null,null,null,null,null,null,true]
[null,null,"出身校",null,null,null,null,null,"東海大学付属第三高校",null,null,null,null,null,null,null,null,null,"学部"]
[null,null,null,null,null,null,null,null,null,null,null,null,null,null,null,null,null,null,"学科",null,"普通"]
[null,null,"出身地",null,null,null,null,null,"長野県",null,null,null,null,null,null,null,null,null,"卒業年度",null,"西暦",null,1997,null,null,null,null,"年"]
[null,null,"紹介者",null,null,null,null,null,"玉井　豊"]
[]
[null,null,"この会で情報発信できる事（出来るだけ詳しくお願いします）",null,null,null,null,null,"生命保険、損害保険を活用したリスクコンサルティング、相続対策、企業様の福利厚生、リスクコンサルティング等"]
[]
[]
[]
[null,null,"この会で情報を得たい事（出来るだけ詳しくお願いします）",null,null,null,null,null,"ご提案可能な個人様、法人様のご紹介。お付き合いのあるお客様の不動産活用などの情報"]
[]
[]
[]
[null,null,"参加希望地域会",null,null,null,null,null,"城北"]
[]
[null,null,"その他（趣味、自分のこと）",null,null,null,null,null,"2016年より事務局長を仰せつかっております。妻と子供3人の5人家族。板橋区在住。音楽、つり、ゴルフ、スキーが趣味。"]
[]
[]
[null,null,"上記の個人情報は当会の目的以外に使用せず、会員管理部会において厳重に保管します。"]
[null,null,"【送付先】(事務局）"]
[null,null,null,"michi1@michiyo.co.jp"]

{"sheet":"入会金・会費","index":2,"n_rows":56,"n_cols":13,"rows_kept":56,"cut":false,"hidden":false,"merged":[[12,7,23,7],[28,7,39,7],[44,7,55,7]]}
[null,"東海大学不動産建設望星会",null,null,null,null,null,"2021.9.12 現在"]
[null,"新入会員　入会金・会費振込金額一覧",null,null,null,null,null,null,null,"入会日"]
[null,"振込先：",null,null,null,null,null,null,null,{"$f":"会員カード!S4","v":2023},{"$f":"会員カード!W4","v":0},{"$f":"会員カード!Z4","v":0},{"$f":"DATE(J3,K3,L3)","v":"2022-11-30"}]
[null,"金融機関","三菱ＵＦＪ銀行  本所支店",null,null,null,null,null,null,"誕生日"]
[null,"口座番号","普通　００４０４０２",null,null,null,null,null,null,{"$f":"会員カード!K12","v":0},{"$f":"会員カード!P12","v":0},{"$f":"会員カード!U12","v":0},{"$f":"DATE(J5,K5,L5)","v":{"$error":"#NUM!"}}]
[null,"名義人","東海大学不動産建設望星会　会計　丹治詳元"]
[null,"※ お振込みの際は会社名・屋号だけでなく"]
[null,"　 必ず 会員名 をトップに入れてください。"]
[]
[null,"■25歳まで",null,null,null,null,null,null,null,"年齢",null,null,{"$f":"DATEDIF(M5,M3,\"Y\")","v":{"$error":"#NUM!"}}]
[]
[null,"入会振込月","入会金","会　費","会費該当期間","合計金額",null,"休会費"]
[null,"4月",5000,5000,"振込日～翌年3月分",{"$f":"+D13+C13","v":10000},null,2500]
[null,"5月",5000,5000,"〃",10000]
[null,"6月",5000,5000,"〃",10000]
[null,"7月",5000,3700,"〃",8700]
[null,"8月",5000,3700,"〃",8700]
[null,"9月",5000,3700,"〃",8700]
[null,"10月",5000,2500,"〃",7500]
[null,"11月",5000,2500,"〃",7500]
[null,"12月",5000,2500,"〃",7500]
[null,"1月",5000,1200,"振込日～3月分",6200]
[null,"2月",5000,1200,"3月分",6200]
[null,"3月",5000,5000,"4月～翌年3月",10000]
[]
[null,"■26歳～40歳まで"]
[]
[null,"入会振込月","入会金","会　費","会費該当期間","合計金額",null,"休会費"]
[null,"4月",5000,8000,"振込日～翌年3月分",{"$f":"+D29+C29","v":13000},null,4000]
[null,"5月",5000,8000,"〃",13000]
[null,"6月",5000,8000,"〃",13000]
[null,"7月",5000,6000,"〃",11000]
[null,"8月",5000,6000,"〃",11000]
[null,"9月",5000,6000,"〃",11000]
[null,"10月",5000,4000,"〃",9000]
[null,"11月",5000,4000,"〃",9000]
[null,"12月",5000,4000,"〃",9000]
[null,"1月",5000,2000,"振込日～3月分",7000]
[null,"2月",5000,2000,"3月分",7000]
[null,"3月",5000,8000,"4月～翌年3月",13000]
[]
[null,"■40歳以降"]
[]
[null,"入会振込月","入会金","会　費","会費該当期間","合計金額",null,"休会費"]
[null,"4月",5000,10000,"振込日～翌年3月分",{"$f":"+D45+C45","v":15000},null,5000]
[null,"5月",5000,10000,"〃",15000]
[null,"6月",5000,10000,"〃",15000]
[null,"7月",5000,7500,"〃",12500]
[null,"8月",5000,7500,"〃",12500]
[null,"9月",5000,7500,"〃",12500]
[null,"10月",5000,5000,"〃",10000]
[null,"11月",5000,5000,"〃",10000]
[null,"12月",5000,5000,"〃",10000]
[null,"1月",5000,2500,"振込日～3月分",7500]
[null,"2月",5000,2500,"3月分",7500]
[null,"3月",5000,10000,"4月～翌年3月",15000]

{"sheet":"確認。登録","index":3,"n_rows":25,"n_cols":9,"rows_kept":25,"cut":false,"hidden":false,"merged":[[0,8,0,9]]}
[null,null,null,null,null,null,null,null,"2021.06.22 現在"]
[null,"確認，登録のご案内"]
[]
[null,"望星会ホームページ／資料ﾀﾞｳﾝﾛｰﾄﾞ"]
[]
[null,"https://www.fk-bousei.com/%E8%B3%87%E6%96%99%E3%83%80%E3%82%A6%E3%83%B3%E3%83%AD%E3%83%BC%E3%83%89/"]
[]
[null,null,null,null,"設立趣旨書"]
[null,null,null,null,"会則"]
[null,null,null,null,"運営細則"]
[null,null,null,null,"※ご確認ください。"]
[]
[]
[null,"サークルスクエア"]
[]
[null,"https://www.c-sqr.net/"]
[]
[null,null,null,null,"※こちらから無料登録ができます。"]
[null,null,null,null,"※登録，操作方法についてはWEB管理広報部会"]
[null,null,null,null,"　　にお問い合わせください。"]
[null,null,null,null,"　　担当："]
[]
[]
[null,"大学不動産連盟ホームページ"]
[null,"http://www.urel.biz/"]